{"text_format":"1","workbook":"xlsx","n_sheets":1,"sheets":["Expense Report"],"not_rendered":{"charts":0,"images":2,"macros":0,"external_links":0,"defined_names":1,"comments":0,"pivot_tables":0},"unopened":[],"bounds":{"document_bytes":16777216,"sheet_cells":100000,"rows_first":2000,"rows_last":500,"rows_between":2000,"halvings":0,"cell_chars":16384,"cell_head_chars":4096},"cells_cut":0,"cells_raw":0,"read":"whole","date_system":"1900"}

{"sheet":"Expense Report","index":0,"n_rows":36,"n_cols":12,"rows_kept":36,"cut":false,"hidden":false,"merged":[[3,7,4,7],[3,8,4,9],[2,10,2,11],[20,9,20,10],[21,9,21,10],[2,8,2,9],[13,2,13,3],[14,2,14,3],[30,6,30,11],[31,6,33,11],[27,7,27,10],[24,7,24,10],[23,2,23,3],[15,2,15,3],[16,2,16,3],[17,2,17,3],[19,9,19,10],[25,2,25,3],[26,2,26,3],[20,5,20,8],[22,2,22,3],[24,2,24,3],[11,2,11,3],[12,2,12,3],[2,5,2,6],[3,5,3,6],[4,5,4,6],[6,2,6,3],[7,2,7,3],[8,2,8,3],[9,2,9,3],[10,2,10,3],[32,2,32,3],[33,2,33,3],[27,2,27,3],[28,2,28,3],[29,2,29,3],[30,2,30,3],[31,2,31,3],[35,2,35,10]]}
[null,"EXPENSE REPORT TEMPLATE"]
[]
[null,"EMP. NAME",null,"REIMBURSEMENT ADDRESS","DEPARTMENT",null,null,"DESTINATION",null,null,"TIME PERIOD"]
[null,"EMP. ID",null,null,"MANAGER",null,null,"PURPOSE",null,null,"FROM","TO"]
[null,"PHONE",null,null,"MGR. PHONE"]
[]
[null,"DATE","DESCRIPTION",null,"AIR & TRANS.","LODGING","FUEL / MLG.","PHONE","MEALS & TIPS","ENTERTAINMENT","OTHER","TOTAL"]
[null,null,null,null,null,null,null,null,null,null,null,{"$f":"SUM(E8:K8)","v":0}]
[null,null,null,null,null,null,null,null,null,null,null,{"$f":"SUM(E9:K9)","v":0}]
[null,null,null,null,null,null,null,null,null,null,null,0]
[null,null,null,null,null,null,null,null,null,null,null,0]
[null,null,null,null,null,null,null,null,null,null,null,0]
[null,null,null,null,null,null,null,null,null,null,null,0]
[null,null,null,null,null,null,null,null,null,null,null,0]
[null,null,null,null,null,null,null,null,null,null,null,0]
[null,null,null,null,null,null,null,null,null,null,null,0]
[null,null,null,null,null,null,null,null,null,null,null,0]
[null,null,null,null,null,null,null,null,null,null,null,0]
[null,null,null,null,{"$f":"SUM(E8:E18)","v":0},{"$f":"SUM(F8:F18)","v":0},0,0,0,0,0]
[null,null,null,null,null,null,null,null,null,"Subtotal",null,{"$f":"SUM(L8:L18)","v":0}]
[null,null,null,null,null,"* DON'T FORGET TO ATTACH RECEIPTS *",null,null,null,"Advances"]
[null,"Itemized Expenses or Description of \"Other\"",null,null,null,null,null,null,null,"Total Reimbursement",null,{"$f":"L20-L21","v":0}]
[null,"DATE","DESCRIPTION",null,"AMOUNT"]
[]
[]
[null,null,null,null,null,null,null,"Employee Signature",null,null,null,"Date"]
[]
[]
[null,null,null,null,null,null,null,"Authorizer Signature",null,null,null,"Date"]
[]
[null,null,null,null,null,null,"For Office Use Only"]
[]
[]
[]
[]
[null,null,"CLICK HERE TO CREATE EXPENSE REPORT TEMPLATES IN SMARTSHEET"]